bitfinex/quotes_ETHUSD_20260209
["timestamp","ask_amount","ask_price","bid_price","bid_amount"]
[1770621738690,0.96596281,2087.0,2086.3,0.001]
[1770621738986,0.96596281,2086.9,2086.3,0.001]
[1770621741367,2.16396932,2086.8,2086.2,0.001]
[1770621743196,0.96596281,2086.7,2086.2,0.001]
[1770621743492,1.19812134,2086.6,2086.2,0.001]
[1770621745879,0.96596281,2086.6,2086.2,0.001]
[1770621746194,0.96596281,2086.6,2086.0,0.001]
[1770621747518,0.96596281,2086.6,2085.5,4.79488601]
[1770621747519,0.96596281,2086.4,2085.3,1.57831284]
[1770621747791,10.08344697,2086.8,2085.2,0.001]
[1770621747792,0.96596281,2086.2,2085.2,0.001]
[1770621747996,0.96596281,2086.0,2085.2,0.001]
[1770621750096,2.16448622,2085.9,2085.2,0.001]
[1770621750395,0.96596281,2085.8,2085.2,0.001]
[1770621751811,1.19852341,2085.9,2085.0,0.001]
[1770621751812,0.96596281,2085.6,2085.0,0.001]
[1770621751974,2.1647161,2085.5,2085.0,0.001]
[1770621752374,0.96596281,2085.4,2085.0,0.001]
[1770621753999,1.19886826,2085.3,2085.0,0.001]
[1770621754871,0.96596281,2085.2,2084.5,0.001]
[1770621756505,1.19898326,2085.1,2084.5,0.001]
[1770621758802,0.96596281,2085.0,2084.5,0.001]
[1770621759991,0.1024,2085.5,2084.5,0.92514262]
[1770621759992,0.96596281,2085.4,2084.5,0.92514262]
[1770621760192,3.35,2085.3,2084.5,0.92514262]
[1770621760722,0.7,2085.2,2084.5,0.92514262]
[1770621761010,1.19898326,2085.1,2084.5,0.92514262]
[1770621763516,1.19898326,2085.1,2084.5,2.12446569]
[1770621763910,1.19898326,2085.1,2084.5,0.92514262]
[1770621766822,1.19898326,2085.1,2084.7,0.001]
[1770621767189,0.002,2084.9,2084.7,0.001]
[1770621768625,0.002,2084.9,2084.7,0.93123673]
[1770621769126,0.002,2084.9,2084.5,0.001]
[1770621769301,0.97942185,2084.8,2084.1,0.001]
[1770621769491,0.002,2084.9,2084.1,0.001]
[1770621769717,0.98142185,2084.9,2084.1,0.93123673]
[1770621769892,0.98142185,2084.9,2084.1,0.001]
[1770621770910,0.002,2084.9,2084.2,2.12972497]
[1770621771318,0.002,2085.1,2084.4,0.93023673]
[1770621771510,9.93056863,2084.8,2083.9,0.001]
[1770621771820,9.93056863,2084.8,2082.6,0.93023673]
[1770621771821,1.02990019,2083.7,2082.6,0.93023673]
[1770621772022,2.65283456,2083.6,2082.8,0.93023673]
[1770621772237,1.69038845,2083.5,2083.0,0.05047834]
[1770621772424,1.69038845,2083.5,2083.3,0.05047834]
[1770621772720,1.69038845,2083.5,2083.0,0.98071507]
[1770621772922,1.69038845,2083.5,2083.0,0.05047834]
[1770621773293,1.69038845,2083.5,2083.1,0.001]
[1770621775123,1.69038845,2083.5,2082.7,0.98071507]
[1770621775302,1.19964717,2084.0,2083.3,0.05047834]
[1770621775621,0.001,2083.8,2083.3,0.05047834]
[1770621775817,0.34702606,2083.8,2083.3,0.05047834]
[1770621776037,0.33542535,2083.7,2083.3,0.05047834]
[1770621776542,0.33542535,2083.7,2083.1,0.93023673]
[1770621777042,0.33542535,2083.7,2083.3,0.05047834]
[1770621777231,0.33542535,2083.7,2083.4,1.1999616]
[1770621779545,0.33542535,2083.7,2083.3,0.98071507]
[1770621780045,0.002,2083.5,2083.3,0.98071507]
[1770621780345,0.33742535,2083.7,2083.3,0.05047834]
[1770621780642,0.33842535,2083.7,2083.3,0.05047834]
[1770621781441,0.33842535,2083.7,2083.2,0.001]
[1770621781749,0.001,2083.6,2083.3,0.05047834]
[1770621782039,0.33742535,2083.7,2083.3,0.05047834]
[1770621782209,0.001,2083.6,2083.3,0.05047834]
[1770621782415,0.33742535,2083.7,2083.3,0.05047834]
[1770621782626,1.19936617,2084.5,2083.7,0.05047834]
[1770621783347,2.17878802,2084.5,2083.7,0.05047834]
[1770621783752,2.17878802,2084.5,2083.8,1.19973126]
[1770621788253,2.17878802,2084.5,2083.8,0.94961878]
[1770621788429,0.97942185,2084.4,2083.8,0.94961878]
[1770621788638,0.97942185,2084.4,2083.7,1.19974997]
[1770621789649,0.97942185,2084.2,2083.4,1.19994638]
[1770621790726,2.17884197,2084.4,2083.6,0.05047834]
[1770621791067,1.19937353,2084.5,2083.6,0.98071507]
[1770621791631,2.17879538,2084.5,2083.9,0.05047834]
[1770621792342,2.17879538,2084.5,2083.7,1.19974492]
[1770621792946,2.17879538,2084.5,2083.8,0.001]
[1770621793142,2.17879538,2084.5,2083.8,1.20073019]
[1770621793345,0.002,2084.3,2083.9,2.18034994]
[1770621794740,0.002,2084.3,2084.0,0.93023673]
[1770621794938,0.002,2084.5,2084.2,0.98071507]
[1770621795152,2.18040735,2085.1,2084.2,0.98071507]
[1770621795466,0.98871641,2085.0,2084.2,0.98071507]
[1770621795646,2.18781468,2084.9,2084.3,1.19944345]
[1770621795961,0.98871641,2084.9,2084.3,1.24992179]
[1770621797666,0.98871641,2084.9,2084.1,2.16202725]
[1770621797868,2.18782756,2084.9,2084.1,1.19955856]
[1770621798157,0.96943949,2084.8,2084.1,1.19955856]
[1770621799641,1.19911115,2084.9,2084.1,0.96246869]
[1770621799844,2.16848682,2085.0,2084.2,1.01294703]
[1770621800345,0.96943949,2084.9,2084.0,4.79844462]
[1770621801798,2.16849836,2085.0,2084.3,1.19944345]
[1770621805486,1.19905887,2085.0,2084.3,1.19944345]
[1770621805676,0.96943949,2084.7,2083.9,3.791]
[1770621805864,0.96943949,2084.7,2084.0,1.19960043]
[1770621807793,2.16871033,2084.6,2083.9,0.001]
[1770621807998,0.96943949,2084.5,2083.9,0.001]
[1770621809869,1.20118363,2084.8,2084.1,0.05047834]
[1770621810062,0.002,2084.8,2084.4,0.05047834]
[1770621810266,0.002,2084.8,2084.5,0.05047834]
[1770621811396,0.002,2084.8,2084.5,1.01294703]
[1770621811963,0.002,2084.8,2084.6,1.19927084]
[1770621813890,0.002,2085.0,2084.6,1.19927084]
[1770621814090,0.002,2085.0,2084.8,1.24957689]
[1770621816690,0.002,2085.0,2084.8,1.24962967]
[1770621816896,0.002,2085.0,2084.8,1.19915133]
[1770621817812,0.002,2085.0,2084.7,1.19920885]
[1770621817996,0.002,2085.0,2084.5,4.84774073]
[1770621818203,0.97143949,2085.0,2084.6,1.19924487]
[1770621818603,0.002,2084.8,2084.5,4.79826239]
[1770621820110,0.97143949,2084.8,2084.5,0.001]
[1770621821201,2.17059978,2084.8,2084.5,0.001]
[1770621821406,0.97143949,2084.8,2084.5,0.001]
[1770621825993,0.97143949,2084.8,2084.3,0.001]
[1770621828522,2.17060014,2084.8,2084.3,0.001]
[1770621829919,0.94098574,2084.7,2084.3,0.001]
[1770621830224,0.94098574,2084.5,2084.3,0.001]
[1770621836300,2.14031804,2084.5,2084.3,0.001]
[1770621837424,0.94098574,2084.5,2084.3,0.001]
[1770621838231,2.14032296,2084.5,2084.3,0.001]
[1770621839634,0.94098574,2084.5,2084.3,0.001]
[1770621839851,1.19931618,2084.6,2084.3,0.001]
[1770621844338,1.19931618,2084.6,2084.5,0.001]
[1770621844720,2.14030192,2084.6,2084.5,0.001]
[1770621845429,0.94098574,2084.7,2084.3,0.001]
[1770621846442,0.94098574,2084.7,2083.9,1.20067133]
[1770621846739,0.94098574,2084.7,2083.9,0.001]
[1770621846942,0.94098574,2084.5,2083.9,0.001]
[1770621849112,1.19938591,2084.4,2083.9,0.001]
[1770621849436,2.14037165,2084.4,2083.9,0.001]
[1770621851546,0.94098574,2084.3,2083.9,0.001]
[1770621855027,2.14043167,2084.3,2083.9,0.001]
[1770621857052,0.94098574,2084.3,2084.1,0.001]
[1770621857260,2.14043412,2084.3,2084.1,0.001]
[1770621857470,2.14243412,2084.3,2084.1,0.001]
[1770621859243,0.002,2084.5,2084.2,1.00734626]
[1770621861263,0.002,2084.5,2084.3,2.20678971]
[1770621861458,0.002,2084.5,2084.4,0.95686792]
[1770621863548,0.002,2084.5,2084.4,2.15625383]
[1770621864141,0.002,2084.8,2084.5,0.95686792]
[1770621864851,0.002,2084.8,2084.6,0.95686792]
[1770621865369,0.002,2085.0,2084.7,2.20651435]
[1770621865868,0.92162636,2084.9,2084.4,1.19934023]
[1770621866358,0.92162636,2084.9,2084.5,1.19932361]
[1770621866559,0.002,2085.0,2084.5,1.19932361]
[1770621866949,0.002,2085.0,2084.6,1.19926675]
[1770621868153,0.002,2085.0,2084.6,1.19927084]
[1770621869580,0.002,2085.0,2084.7,1.00734626]
[1770621869904,0.002,2085.0,2084.7,0.05047834]
[1770621870245,0.002,2085.0,2084.5,0.95786792]
[1770621870467,0.92362636,2084.9,2084.5,1.20029025]
[1770621870947,0.92362636,2084.9,2084.5,0.001]
[1770621871148,0.92362636,2084.9,2084.5,1.20031984]
[1770621871676,0.92362636,2084.9,2084.6,1.1992705]
[1770621872475,0.002,2084.9,2084.5,1.20032837]
[1770621881269,0.92362636,2084.9,2084.5,1.20032837]
[1770621882993,0.92362636,2084.9,2084.7,0.001]
[1770621883488,0.92162636,2084.8,2084.5,0.001]
[1770621886088,0.002,2084.9,2084.5,0.93961808]
[1770621886594,0.002,2084.9,2084.5,0.001]
[1770621888395,0.002,2084.9,2084.5,1.20032837]
[1770621889200,0.96899347,2084.9,2084.5,1.20032837]
[1770621893004,0.96899347,2084.9,2084.5,0.001]
[1770621893797,0.96699347,2084.8,2084.5,0.001]
[1770621894197,0.96699347,2084.6,2084.3,0.001]
[1770621894796,0.96699347,2084.6,2084.1,0.001]
[1770621894797,0.96699347,2084.5,2084.1,0.001]
[1770621895296,1.19934831,2084.5,2084.1,0.001]
[1770621895474,0.96699347,2084.4,2084.1,0.001]
[1770621897380,1.19940914,2084.4,2084.1,0.001]
[1770621897576,0.96699347,2084.3,2084.1,0.001]
[1770621898506,0.96699347,2084.6,2084.1,0.001]
[1770621899881,0.96699347,2084.5,2084.1,0.001]
[1770621902108,2.16632209,2084.5,2084.1,0.001]
[1770621902306,0.96699347,2084.2,2083.8,0.001]
[1770621903788,0.96699347,2084.6,2083.9,0.98909642]
[1770621904114,0.96699347,2084.4,2083.9,1.19967358]
[1770621904309,0.96699347,2084.4,2083.8,1.25120574]
[1770621904790,0.96699347,2084.4,2083.9,1.19966911]
[1770621904982,0.96699347,2084.4,2083.8,0.001]
[1770621905182,0.96699347,2084.4,2083.8,1.20072664]
[1770621905977,0.96699347,2084.4,2083.8,0.001]
[1770621906183,0.96699347,2083.8,2083.4,0.001]
[1770621906415,0.96699347,2083.5,2083.0,0.001]
[1770621907310,0.96699347,2083.3,2083.0,0.001]
[1770621907912,0.96699347,2083.1,2082.3,2.77324065]
[1770621908208,1.20019203,2083.0,2082.3,3.97382846]
[1770621908414,2.16716613,2083.1,2082.9,0.001]
[1770621908608,2.16716613,2083.1,2082.3,3.97382846]
[1770621909814,1.20002017,2083.3,2082.8,0.05047834]
[1770621910115,1.19998862,2083.4,2082.8,0.05047834]
[1770621910413,2.16698209,2083.4,2082.6,1.20042254]
[1770621911704,0.96699347,2083.3,2082.5,1.2004711]
[1770621912619,1.2000768,2083.2,2082.5,1.2004711]
[1770621913511,2.16702711,2083.3,2082.7,0.05047834]
[1770621915218,3.352,2083.7,2083.0,0.05047834]
[1770621915219,0.99357812,2083.7,2083.0,0.05047834]
[1770621915510,0.99357812,2083.7,2082.8,1.20030727]
[1770621915711,0.99357812,2083.7,2083.0,0.05047834]
[1770621916290,0.99357812,2083.7,2082.8,1.20030727]
[1770621917418,2.15133375,2083.6,2082.8,1.20030727]
[1770621917615,0.95148734,2083.5,2082.5,8.59185162]
[1770621917821,0.95148734,2083.5,2082.7,1.2508313]
[1770621918415,1.19984641,2083.6,2082.8,0.91770654]
[1770621919215,0.95148734,2083.5,2082.8,0.91770654]
[1770621919532,0.95148734,2083.5,2082.7,1.2508313]
[1770621920106,2.15139696,2083.5,2083.0,0.001]
[1770621920306,0.002,2083.4,2083.0,0.001]
[1770621923533,3.353,2084.0,2083.1,0.05047834]
[1770621923735,0.002,2084.5,2083.9,0.05047834]
[1770621923898,0.002,2084.4,2083.8,0.96818488]
[1770621924103,0.002,2084.4,2083.9,0.05047834]
[1770621924514,0.002,2084.4,2083.9,1.25009702]
[1770621925429,0.95348734,2084.5,2083.9,1.25009702]
[1770621925627,2.15287325,2084.4,2083.6,4.79935126]
[1770621925826,0.95148734,2084.3,2083.6,1.19980198]
[1770621926124,0.95148734,2084.3,2083.7,1.19978765]
[1770621926333,0.002,2084.2,2083.5,4.79952024]
[1770621926502,0.002,2084.2,2083.7,1.19978243]
[1770621926705,0.002,2084.1,2083.4,1.1999616]
[1770621926933,0.002,2084.2,2083.4,1.1999616]
[1770621927804,0.95148734,2084.0,2083.3,3.354]
[1770621928007,0.95148734,2084.0,2083.3,4.55400821]
[1770621928705,2.15110544,2084.0,2083.1,1.20013441]
[1770621928903,0.95348734,2083.9,2083.1,4.55413441]
[1770621929406,0.95348734,2083.8,2083.1,4.55413441]
[1770621929618,0.95148734,2083.8,2083.1,4.55413441]
[1770621929956,0.95348734,2083.7,2083.1,3.354]
[1770621930132,0.95148734,2083.7,2083.1,3.354]
[1770621930322,0.95348734,2083.6,2083.1,3.354]
[1770621930527,0.95148734,2083.6,2083.1,3.354]
[1770621930914,0.95148734,2083.4,2083.0,0.001]
[1770621931437,0.002,2083.4,2083.0,0.001]
[1770621931823,2.1512186,2083.8,2083.1,0.05047834]
[1770621932013,1.19973126,2083.8,2083.1,0.05047834]
[1770621932216,0.95148734,2083.7,2083.1,0.05047834]
[1770621933038,0.95148734,2083.7,2083.1,1.25059596]
[1770621933241,0.95348734,2083.6,2083.1,1.20111762]
[1770621933537,0.002,2083.5,2083.1,1.20111762]
[1770621933705,0.004,2083.5,2083.1,1.20111762]
[1770621934951,0.002,2083.4,2083.1,0.001]
[1770621935711,0.002,2083.5,2083.2,0.05047834]
[1770621937327,0.004,2083.5,2083.3,1.2000192]
[1770621939238,0.002,2083.5,2083.3,1.25049754]
[1770621940014,0.002,2083.5,2083.3,1.2000192]
[1770621940339,0.002,2083.5,2083.4,0.05047834]
[1770621940531,0.002,2083.7,2083.3,2.11772574]
[1770621940731,0.004,2083.7,2083.3,2.11772574]
[1770621940922,0.004,2083.7,2083.3,1.2000192]
[1770621943341,0.002,2083.7,2083.3,1.2000192]
[1770621943542,0.95348734,2083.6,2083.2,3.354]
[1770621943746,0.95348734,2083.6,2082.8,0.001]
[1770621943747,0.95148734,2083.6,2082.8,0.001]
[1770621943927,0.95148734,2083.6,2082.9,1.2012487]
[1770621944328,0.95148734,2083.6,2082.7,4.80135494]
[1770621944329,0.95148734,2083.6,2082.3,3.97381045]
[1770621944528,0.95148734,2083.6,2082.4,1.20053399]
[1770621944723,0.95148734,2083.6,2082.3,2.82371899]
[1770621944924,0.95148734,2083.6,2082.5,1.2004707]
[1770621945349,0.95148734,2083.6,2082.6,1.20042137]
[1770621945551,0.9373975,2083.4,2082.4,1.20053784]
[1770621946133,0.9373975,2083.4,2082.7,0.001]
[1770621947533,1.2000192,2083.3,2082.7,0.001]
[1770621947745,0.9373975,2083.2,2082.7,0.001]
[1770621950525,0.9373975,2083.4,2082.7,0.001]
[1770621953819,2.13736104,2083.4,2082.7,0.001]
[1770621954348,0.9373975,2083.4,2082.7,0.001]
[1770621959052,0.9373975,2083.4,2082.9,0.001]
[1770621959435,0.9373975,2083.3,2082.9,0.001]
[1770621960666,0.9373975,2083.2,2082.9,0.001]
[1770621961563,0.9373975,2083.4,2082.9,0.001]
[1770621962766,2.13738808,2083.4,2082.9,0.001]
[1770621967151,0.9373975,2083.3,2082.9,0.001]
[1770621967354,0.9373975,2083.2,2082.9,0.001]
[1770621968137,0.9373975,2083.4,2082.9,0.001]
[1770621969354,2.13736155,2083.4,2082.9,0.001]
[1770621971233,2.13736155,2083.4,2082.5,0.001]
[1770621971234,8.30917054,2083.1,2082.5,0.001]
[1770621971433,0.9373975,2082.8,2082.5,0.001]
[1770621972140,0.9373975,2082.8,2082.7,0.001]
[1770621972334,0.9373975,2082.8,2082.5,0.001]
[1770621972741,0.9373975,2082.8,2082.3,2.77324065]
[1770621973056,0.9373975,2082.6,2082.0,0.001]
[1770621973259,0.9373975,2082.6,2082.0,1.20176668]
[1770621973555,0.9373975,2082.4,2082.0,0.001]
[1770621975248,2.19852554,2082.6,2082.0,0.001]
[1770621977874,0.99174062,2082.5,2082.0,0.001]
[1770621980272,4.80131402,2082.8,2082.0,0.001]
[1770621980443,5.79284094,2082.9,2082.0,0.99885875]
[1770621980643,0.99174062,2082.8,2082.0,0.99885875]
[1770621982059,0.99174062,2082.8,2082.0,0.001]
[1770621982260,0.99174062,2082.6,2082.0,0.001]
[1770621984353,2.1922031,2082.6,2082.0,0.001]
[1770621984860,2.1922031,2082.6,2082.2,0.001]
[1770621985178,0.002,2082.4,2082.2,0.001]
[1770621992371,0.002,2082.4,2082.2,0.99885875]
[1770621992968,1.54113028,2083.0,2082.3,0.99785875]
[1770621993368,0.99174062,2082.9,2082.2,3.356]
[1770621993562,0.34093348,2083.0,2082.5,0.99785875]
[1770621993776,1.3326741,2083.0,2082.4,1.20053784]
[1770621996190,0.34093348,2083.0,2082.6,1.04833709]
[1770621996360,0.34093348,2083.0,2082.6,0.99785875]
[1770621996567,0.34093348,2083.0,2082.5,8.30970895]
[1770621997392,0.34093348,2083.0,2082.5,9.3075677]
[1770621997685,0.002,2082.8,2082.5,9.3075677]
[1770621997892,0.002,2082.8,2082.5,0.99785875]
[1770621998391,0.002,2082.8,2082.6,1.20042254]
[1770622002190,0.002,2082.8,2082.4,1.20053784]
[1770622002500,0.002,2082.8,2082.4,3.355]
[1770622004387,0.002,2082.8,2082.4,4.55551326]
[1770622005187,0.99374062,2082.8,2082.2,1.20164605]
[1770622005763,0.99374062,2082.8,2082.2,0.001]
[1770622006292,0.99374062,2082.8,2082.2,1.20164789]
[1770622006475,2.17611759,2082.7,2082.2,0.001]
[1770622006674,0.002,2082.8,2082.2,8.36118729]
[1770622007887,0.002,2082.8,2082.4,8.30970895]
[1770622008498,0.002,2082.8,2082.5,1.20048019]
[1770622010397,0.002,2082.8,2082.4,9.51020469]
[1770622010898,0.002,2082.8,2082.6,0.001]
[1770622016506,0.002,2083.3,2082.9,9.22381598]
[1770622016898,0.002,2083.3,2082.9,0.91410703]
[1770622017304,4.80118359,2083.7,2083.0,0.96458537]
[1770622017305,0.002,2083.7,2083.0,0.96458537]
[1770622017486,0.002,2083.7,2083.0,0.91410703]
[1770622017690,0.002,2083.7,2083.1,0.05047834]
[1770622017980,0.002,2083.7,2083.1,0.96458537]
[1770622018381,0.002,2083.7,2083.2,1.2000768]
[1770622019993,0.002,2083.7,2083.2,4.5550768]
[1770622020307,0.97775268,2083.7,2083.2,4.5550768]
[1770622021417,0.002,2083.7,2083.2,4.5550768]
[1770622023591,0.97775268,2083.7,2083.2,4.55507054]
[1770622023987,0.002,2083.5,2083.2,4.55507054]
[1770622024182,0.002,2083.5,2083.2,3.355]
[1770622024384,0.97775268,2083.5,2082.9,1.20021453]
[1770622024593,0.97775268,2083.5,2082.9,1.20020519]
[1770622024815,2.17769922,2083.5,2082.8,1.20030727]
[1770622025306,0.97575268,2083.4,2082.8,1.20030727]
[1770622029412,0.002,2083.5,2082.8,1.20030727]
[1770622029601,0.97775268,2083.5,2082.8,1.20030727]
[1770622030789,0.97575268,2083.4,2082.8,1.20030727]
[1770622031714,0.002,2083.5,2082.8,1.20030727]
[1770622031912,0.002,2083.5,2082.9,0.96458537]
[1770622032688,0.002,2083.5,2083.1,1.20013441]
[1770622032908,0.002,2083.5,2083.1,1.25061275]
[1770622033423,0.002,2083.7,2083.2,4.26810703]
[1770622033602,0.002,2083.7,2083.4,0.05047834]
[1770622034829,0.002,2084.0,2083.5,1.199904]
[1770622035590,0.95837205,2084.0,2083.5,1.199904]
[1770622036522,0.002,2083.8,2083.5,1.199904]
[1770622036926,0.002,2083.8,2083.3,1.2000192]
[1770622039132,0.95642437,2083.8,2083.3,1.2000192]
[1770622041212,0.95442437,2083.7,2083.1,1.20011045]
[1770622041405,0.95442437,2083.7,2083.2,1.20007384]
[1770622041925,0.95442437,2083.7,2083.1,4.55409003]
[1770622042120,0.95442437,2083.7,2083.2,1.20007002]
[1770622042316,0.95442437,2083.7,2083.2,1.20007274]
[1770622045402,0.95442437,2083.6,2083.1,3.354]
[1770622047830,1.19989415,2083.6,2083.1,3.354]
[1770622048032,0.95442437,2083.5,2083.1,3.354]
[1770622048733,0.95442437,2083.5,2083.3,0.001]
[1770622048931,0.95642437,2083.5,2083.3,0.001]
[1770622050132,0.95442437,2083.4,2083.0,0.001]
[1770622050608,0.002,2083.5,2083.0,0.001]
[1770622052232,0.002,2083.5,2083.0,1.20119203]
[1770622056008,0.95642437,2083.5,2083.0,1.20119203]
[1770622058342,2.15633496,2083.5,2083.0,0.001]
[1770622058638,0.95442437,2083.4,2083.0,0.001]
[1770622060538,0.95442437,2083.2,2083.0,0.001]
[1770622061535,0.002,2083.3,2083.0,0.001]
[1770622063842,0.95642437,2083.3,2083.0,0.001]
[1770622064911,2.15646376,2083.3,2083.0,0.001]
[1770622065113,0.95642437,2083.3,2083.0,0.001]
[1770622069431,0.9727898,2083.2,2083.0,0.001]
[1770622073351,0.002,2083.5,2083.1,1.03617627]
[1770622073549,2.17455082,2083.8,2083.2,0.05047834]
[1770622073844,0.002,2083.7,2083.2,0.05047834]
[1770622074231,0.002,2083.7,2083.2,0.05147834]
[1770622074431,0.002,2083.3,2083.2,0.05147834]
[1770622074953,0.002,2083.3,2083.2,0.001]
[1770622082455,0.9767898,2083.3,2083.2,0.001]
[1770622082753,0.004,2083.3,2083.2,0.001]
[1770622084060,0.002,2083.5,2083.2,0.001]
[1770622084558,1.20177448,2083.8,2083.2,0.98669793]
[1770622084731,0.002,2083.7,2083.2,2.18675881]
[1770622085952,0.002,2083.6,2083.2,2.18675881]
[1770622086130,0.9747898,2083.8,2083.2,2.18675881]
[1770622086323,0.002,2083.7,2083.3,0.98569793]
[1770622086555,0.002,2083.8,2083.3,0.98569793]
[1770622086728,0.002,2083.7,2083.3,0.98569793]
[1770622087154,0.002,2083.8,2083.3,2.18565965]
[1770622087339,0.002,2083.7,2083.3,10.49204101]
[1770622087735,0.9747898,2083.6,2083.2,0.001]
[1770622088046,0.9727898,2083.6,2083.2,0.001]
[1770622088358,0.002,2083.5,2083.2,0.001]
[1770622088852,0.002,2083.4,2083.2,0.001]
[1770622089035,0.002,2083.5,2083.2,0.001]
[1770622089441,0.002,2083.4,2083.2,0.001]
[1770622089643,0.002,2083.5,2083.2,0.001]
[1770622090157,0.002,2083.4,2083.2,0.001]
[1770622090457,0.002,2083.5,2083.2,0.001]
[1770622090830,0.002,2083.4,2083.2,0.001]
[1770622091160,0.002,2083.5,2083.2,0.001]
[1770622091561,0.002,2083.4,2083.2,0.001]
[1770622091745,0.002,2083.5,2083.2,0.001]
[1770622092152,0.002,2083.4,2083.2,0.001]
[1770622092351,0.002,2083.5,2083.2,0.001]
[1770622092658,0.9747898,2083.5,2083.2,0.001]
[1770622092849,0.002,2083.4,2083.2,0.001]
[1770622096662,0.002,2083.4,2083.2,0.90106834]
[1770622096869,1.31927497,2084.2,2083.7,8.30638136]
[1770622097043,1.31927497,2084.2,2083.5,9.2064497]
[1770622097044,0.002,2084.1,2083.5,9.2064497]
[1770622097366,0.34002765,2084.2,2083.6,0.95054668]
[1770622097564,0.002,2084.1,2083.6,0.95054668]
[1770622098366,0.002,2084.1,2083.8,0.90006834]
[1770622098562,0.002,2084.4,2084.0,0.90006834]
[1770622098756,0.002,2084.4,2084.1,1.19955856]
[1770622098953,0.002,2084.4,2084.1,2.0996269]
[1770622100079,0.002,2084.4,2084.0,1.19958325]
[1770622100459,0.002,2084.4,2083.9,3.354]
[1770622100770,0.98124732,2084.4,2083.9,3.354]
[1770622101067,0.98124732,2084.4,2083.9,4.55367025]
[1770622101572,0.98124732,2084.4,2083.9,3.354]
[1770622101767,0.98124732,2084.4,2083.9,4.55367348]
[1770622105271,0.002,2084.4,2083.9,4.55367348]
[1770622105842,0.98124732,2084.4,2083.9,4.55367348]
[1770622108178,0.97924732,2084.3,2083.9,3.354]
[1770622108873,0.97924732,2084.3,2083.4,3.791]
[1770622109071,0.97924732,2084.3,2083.4,1.20095993]
[1770622110143,0.97924732,2084.1,2083.4,1.20095993]
[1770622112074,0.97924732,2084.1,2083.6,0.001]
[1770622112259,0.97924732,2084.0,2083.6,0.001]
[1770622113375,0.98124732,2084.2,2083.6,0.001]
[1770622113576,0.002,2084.2,2083.7,0.90006834]
[1770622114362,0.002,2084.2,2083.8,1.19973126]
[1770622114564,0.002,2084.2,2083.8,2.0997996]
[1770622115993,0.002,2084.2,2083.8,1.19973126]
[1770622117383,0.002,2084.2,2083.7,4.79892504]
[1770622117980,0.98124732,2084.2,2083.7,1.19978883]
[1770622119463,0.98124732,2084.2,2083.6,4.55380249]
[1770622119464,0.97924732,2084.1,2083.6,4.55380249]
[1770622119665,0.97924732,2084.1,2083.6,0.001]
[1770622119859,0.97924732,2084.1,2083.6,1.20083836]
[1770622120057,0.97924732,2084.1,2083.6,0.001]
[1770622121557,0.97924732,2084.0,2083.6,0.001]
[1770622122290,0.87924732,2084.0,2083.2,0.001]
[1770622123792,0.97924732,2083.8,2083.2,0.001]
[1770622125480,0.97924732,2083.8,2083.5,0.001]
[1770622126482,1.19978883,2083.7,2083.5,0.001]
[1770622127070,2.16952828,2083.7,2083.5,0.001]
[1770622132188,0.96973945,2083.6,2083.5,0.001]
[1770622132615,0.96973945,2083.6,2083.2,0.001]
[1770622132796,0.002,2084.0,2083.3,0.98613751]
[1770622133093,0.002,2084.2,2083.5,0.98613751]
[1770622133262,0.002,2084.2,2083.6,1.25032475]
[1770622133463,0.002,2084.2,2083.7,0.05047834]
[1770622133663,0.002,2084.2,2083.6,2.18598392]
[1770622134186,0.002,2084.2,2083.7,0.98613751]
[1770622134674,0.004,2084.2,2083.7,0.98613751]
[1770622135075,0.002,2084.2,2083.7,0.98613751]
[1770622135590,0.002,2084.2,2083.8,2.18586877]
[1770622135985,0.004,2084.2,2083.8,2.18586877]
[1770622136794,0.002,2084.2,2083.9,0.98613751]
[1770622137766,0.002,2084.0,2083.9,2.18581119]
[1770622139197,0.002,2084.0,2083.7,0.98613751]
[1770622139392,0.002,2084.0,2083.7,1.19978486]
[1770622139878,0.004,2084.0,2083.6,1.19984641]
[1770622140981,0.004,2084.0,2083.5,2.18599975]
[1770622141179,0.002,2083.9,2083.5,2.18599975]
[1770622141886,0.002,2084.0,2083.5,1.19986224]
[1770622142086,0.002,2083.9,2083.5,1.19986224]
[1770622142469,0.002,2083.8,2083.5,1.19986224]
[1770622142670,0.002,2083.9,2083.5,1.19986224]
[1770622143174,0.002,2083.8,2083.5,3.353]
[1770622143381,0.97173945,2083.9,2083.5,3.353]
[1770622146500,0.96973945,2083.9,2083.5,3.353]
[1770622146803,0.96973945,2083.9,2083.5,4.5529003]
[1770622147192,0.002,2083.8,2083.5,3.353]
[1770622147585,0.97173945,2083.8,2083.5,3.353]
[1770622148604,0.97173945,2083.8,2083.5,4.55290341]
[1770622148795,0.002,2083.8,2083.5,4.55290341]
[1770622149192,0.002,2083.8,2083.5,5.53904092]
[1770622149193,0.002,2083.7,2083.5,5.53904092]
[1770622149697,0.002,2084.0,2083.5,5.53904092]
[1770622149888,0.002,2083.9,2083.5,5.53904092]
[1770622150207,0.002,2083.9,2083.7,0.001]
[1770622152075,0.97173945,2083.8,2083.4,0.001]
[1770622152406,0.96973945,2083.8,2083.4,0.001]
[1770622154205,2.16947156,2083.8,2083.4,0.001]
[1770622156284,0.91616119,2083.7,2083.4,0.001]
[1770622157410,0.99542455,2083.6,2083.4,0.001]
[1770622157987,0.99542455,2083.6,2083.2,0.001]
[1770622158188,0.002,2083.5,2083.2,0.001]
[1770622159208,0.99542455,2083.8,2083.2,0.99649142]
[1770622160490,0.99542455,2083.8,2083.3,1.2000192]
[1770622162995,0.99542455,2083.8,2083.4,0.001]
[1770622163217,2.19715607,2083.8,2083.4,0.001]
[1770622163400,0.99542455,2083.7,2083.4,0.001]
[1770622164418,0.002,2083.6,2083.4,0.001]
[1770622164794,0.002,2083.5,2083.4,0.001]